Cogmind - Beta 15 @@@ ROGUE MODE // 2025.08.16 @ 15:36:15 Player: Naughtyusername Result: Destroyed by EM-TYD(R) with Subdweller Machine Gun Performance ------------- Evolutions (0) 0 Regions Visited (2) 400 Robots Destroyed (25) 125 Value Destroyed (477) 477 Prototype IDs (2) 40 Alien Tech Used (0) 0 Bonus (0) 0 TOTAL SCORE: 1042 Bonus ------- None Cogmind --------- Core Integrity 0/250 Matter 21/300 Energy 255/265 System Corruption 2% Temperature Cool (0) Movement Rolling (215) Ox9 Location -10/Subcaves Parts ------- > --- POWER (1) -------- Improved Ion Engine > --- PROPULSION (2) --- Light Treads Wheel > --- UTILITY (2) ------ Huge Storage Unit Tractor Beam > --- WEAPON (2) ------- Medium Laser (fused) Mini Grenade Launcher > --- INVENTORY (25) --- Improved Ion Engine Wheel Wheel Wheel Large Storage Unit Medium Laser Small Laser Subdweller Machine Gun Light Cannon Light Cannon Battle Cannon Mini Grenade Launcher Dirty Datajack (20) Peak State ------------ > --- POWER ------------ Improved Ion Engine > --- PROPULSION ------- Light Treads Wheel > --- UTILITY ---------- Large Storage Unit Huge Storage Unit > --- WEAPON ----------- Battle Cannon Mini Grenade Launcher > --- INVENTORY -------- Improved Ion Engine Improved Ion Engine Wheel Wheel Wheel Tractor Beam Medium Laser Medium Laser Small Laser Light Cannon Light Cannon Mini Grenade Launcher Dirty Datajack [Rating: 12] Favorites ----------- Power Improved Ion Engine Engine Improved Ion Engine Propulsion Wheel Treads Light Treads Leg Aluminum Leg Wheel Wheel Utility Huge Storage Unit Device Seismic Detector Storage Huge Storage Unit Weapon Light Cannon Energy Gun Medium Laser Ballistic Cannon Light Cannon Launcher Mini Grenade Launcher Build | -11 -10 -10 ------- Run | Yrd Mat Sub Slots Evolved . | . . . Power . | . . . Propulsion . | . . . Utility . | . . . Weapon . | . . . Parts Attached 20 | 4 5 11 Power 2 | . 1 1 Engine 2 | . 1 1 Core . | . . . Reactor . | . . . Propulsion 5 | 2 . 3 Treads 3 | 1 . 2 Leg . | . . . Wheel 2 | 1 . 1 Hover . | . . . Flight . | . . . Utility 5 | 2 2 1 Device 3 | 2 . 1 Storage 2 | . 2 . Processor . | . . . Hackware . | . . . Protection . | . . . Artifact . | . . . Weapon 8 | . 2 6 Energy Gun 2 | . . 2 Energy Cannon . | . . . Ballistic Gun . | . . . Ballistic Cannon 4 | . 2 2 Launcher 2 | . . 2 Special Weapon . | . . . Impact Weapon . | . . . Slashing Weapon . | . . . Piercing Weapon . | . . . Special Melee Weapon . | . . . Unidentified Prototypes . | . . . Parts Lost 6 | . . 6 Power 1 | . . 1 Propulsion 3 | . . 3 Utility 1 | . . 1 Weapon 1 | . . 1 Highest Loss Streak 3 | . . 3 To Critical Strikes . | . . . Average Backups 14 | 6 15 14 Power 1 | 1 1 1 Propulsion 4 | 3 5 4 Utility 1 | . 1 1 Weapon 6 | 1 6 6 Tool/Special . | . . . Unused Backups 17 | 9 1 7 Power 3 | 1 1 1 Propulsion 8 | 5 . 3 Utility 1 | 1 . . Weapon 4 | 2 . 2 Tool/Special 1 | . . 1 Average Slot Usage (%) 99 | . 99 99 Engine 14 | . 14 14 Treads 13 | . 14 13 Wheel 14 | . 14 14 Device 7 | . 14 6 Storage 20 | . 14 21 Ballistic Cannon 25 | . 26 24 Launcher 1 | . . 2 Peak Build Rating 12 | 9 10 12 Average Rating 10 | 7 9 10 On Entrance 7 | 6 7 10 Naked Turns . | . . . Heaviest Build 113 | 12 94 113 Greatest Support 20 | 20 10 20 Greatest Overweight (x) 11 | 1 9 11 Average Overweight (x) 9 | . 7 10 Largest Inventory Capacity 25 | 8 25 25 Average Capacity 23 | 8 23 25 Most Carried 18 | 8 17 18 Average Carried 14 | 6 15 14 Final Capacity 25 | 8 25 25 Final Carried 17 | 8 17 13 Class Distribution -------------------- 100% | Mutant Dominant Class ---------------- Mutant | -10/Materials Mutant | -10/Subcaves Resources | -11 -10 -10 ----------- Run | Yrd Mat Sub Matter Collected 739 | 240 49 450 Remotely 17 | . . 17 Salvage Created 487 | 263 32 192 Parts 41 | 24 3 14 Haulers Intercepted . | . . . Recyclers Shooed 1 | 1 . . Parts Field Recycled . | . . . Retrieved Matter . | . . . Parts Self-Destructed 12 | . . 12 Prevented . | . . . Kills | -11 -10 -10 ------- Run | Yrd Mat Sub Combat Hostiles Destroyed 15 | . 3 12 Cannons 12 | . 3 9 AOE 3 | . . 3 Classes Destroyed 5 | 3 1 1 Worker 2 | 2 . . Tunneler 7 | 7 . . Recycler 1 | 1 . . Swarmer 6 | . 3 3 Subdweller 9 | . . 9 Best Kill Streak 3 | 3 2 3 Combat Bots Only 3 | . 2 3 Max Kills in Single Turn 2 | 1 1 2 Gunslinging . | . . . Exploded 2 | . . 2 Melee . | . . . Uniques/NPCs Destroyed . | . . . Combat | -11 -10 -10 -------- Run | Yrd Mat Sub Hostile Shots Fired 116 | . 13 103 Missed 38 | . 3 35 Hits 78 | . 10 68 Projectile 78 | . 10 68 Critical Strikes 1 | . . 1 Damage Taken 1331 | . 76 1255 Core 257 | . 37 220 Absorbed by Shields . | . . . Core Remaining (%) 100 | 100 . . Volleys Fired 90 | 18 7 65 Largest 2 | 2 2 2 Hottest 90 | 90 60 63 Shots Fired 146 | 36 14 96 Gun 36 | 36 . . Cannon 99 | . 14 85 Launcher 11 | . . 11 Special . | . . . Kinetic 99 | . 14 85 Thermal 36 | 36 . . Explosive 11 | . . 11 Electromagnetic . | . . . Robot Hit Streak 10 | 5 5 10 Robot Miss Streak 3 | 2 3 3 Penetration Max . | . . . Secondary Targets . | . . . Shots Hit Robots 82 | 21 6 55 Core Hits 31 | 11 3 17 Critical Kills . | . . . Critical Parts Destroyed . | . . . Critical Strikes 5 | 2 1 2 Burn 2 | 2 . . Blast 3 | . 1 2 Melee Attacks . | . . . Impact . | . . . Slashing . | . . . Piercing . | . . . Sneak Attacks . | . . . Combat Hostiles . | . . . Follow-up Attacks . | . . . Damage Inflicted 1849 | 275 104 1470 Guns 275 | 275 . . Cannons 1119 | . 104 1015 Explosions 455 | . . 455 Melee . | . . . Ramming . | . . . Kinetic 1119 | . 104 1015 Thermal 275 | 275 . . Explosive 455 | . . 455 Electromagnetic . | . . . Impact . | . . . Slashing . | . . . Piercing . | . . . Highest Corruption 2 | . 2 2 Average Corruption 2 | . 2 2 Corruption Purged . | . . . Corruption Blocked . | . . . Effects 40 | . 3 37 Message Errors 9 | . . 9 Matter Fused 11 | . 1 10 Heat Flow Errors 4 | . 1 3 Energy Discharges 6 | . . 6 Parts Fused 2 | . . 2 Data Loss (minor) 4 | . 1 3 Data Loss (major) 3 | . . 3 Misfires 1 | . . 1 Overload Shots . | . . . Overflow Damage 7 | . . 7 Projectiles . | . . . Explosions 7 | . . 7 Melee . | . . . Knockbacks 13 | . 3 10 Impact . | . . . Kinetic 13 | . 3 10 Secondary . | . . . Self-Inflicted Damage 70 | . . 70 Shots 3 | . . 3 Rammed . | . . . Targets Rammed . | . . . Kicked . | . . . Crushed . | . . . Highest Temperature 256 | 180 170 256 Average Temperature 66 | 57 49 122 Received Heat Transfer 186 | . . 186 Siege Activations . | . . . Martial Activations . | . . . Shielding Activations . | . . . Robots Disrupted . | . . . Combat Hostiles . | . . . Robots Corrupted . | . . . Combat Hostiles . | . . . Parts Fried . | . . . Impact Corruptions . | . . . Robots Melted . | . . . Combat Hostiles . | . . . Parts Melted 1 | . . 1 Heat Transferred 879 | 879 . . Parts Sabotaged . | . . . Parts Stolen . | . . . Parts Stripped . | . . . Power Chain Reactions . | . . . Alert | -11 -10 -10 ------- Run | Yrd Mat Sub Maximum Alert Level . | . . . Low Security (%) 100 | 100 100 . Level 1 . | . . . Level 2 . | . . . Level 3 . | . . . Level 4 . | . . . Level 5 . | . . . High Security . | . . . Max Security . | . . . Peak Influence 65 | 10 65 . Initial . | . . . Average 6 | 2 7 . Influence Increases 300 | 50 85 165 Destroy 0b10 Robot/C 120 | . 60 60 Destroy 0b10 Robot/NC 50 | 50 . . Destroy Leader 10 | . 10 . Lose Combat Pursuer 120 | . 15 105 Influence Decreases 142 | 50 85 7 Time Decay 142 | 50 85 7 Squads Dispatched . | . . . Investigation . | . . . Extermination . | . . . Reinforcement . | . . . Assault . | . . . Garrison . | . . . Intercept . | . . . Searches Triggered . | . . . Construction Impeded . | . . . Haulers Reinforced . | . . . Active Scanning Responses . | . . . Cargo Convoy Interrupts . | . . . Stealth | -11 -10 -10 --------- Run | Yrd Mat Sub Distress Signals . | . . . Communications Jammed . | . . . Distress Signals . | . . . Times Spotted 24 | . 4 20 Peak Tracking Total 4 | . 3 4 Tactical Retreats 3 | . 1 2 Traps | -11 -10 -10 ------- Run | Yrd Mat Sub Traps Triggered 1 | . 1 . Indirectly . | . . . Trap Hack Attempts . | . . . Triggered . | . . . Disarmed . | . . . Reprogrammed . | . . . Reused . | . . . Traps Extracted . | . . . Installed . | . . . Triggered . | . . . Machines | -11 -10 -10 ---------- Run | Yrd Mat Sub Machines Disabled . | . . . Max in Single Turn . | . . . Machines Repaired . | . . . Machines Dismantled . | . . . Machines Sabotaged . | . . . Overloaded Fab Kills . | . . . Hacking | -11 -10 -10 --------- Run | Yrd Mat Sub Machines Accessed 2 | . 2 . Terminals 1 | . 1 . Fabricators . | . . . Repair Stations . | . . . Recycling Units 1 | . 1 . Scanalyzers . | . . . Garrison Access . | . . . Total Hacks 4 | . 4 . Successful 2 | . 2 . Failed 2 | . 2 . Catastrophic 1 | . 1 . Database Lockouts . | . . . Manual 1 | . 1 . Terminals 2 | . 2 . Fabricators . | . . . Repair Stations . | . . . Recycling Units 2 | . 2 . Scanalyzers . | . . . Garrison Access . | . . . Terminal Hacks 1 | . 1 . Prototype ID Bank 1 | . 1 . Fabricator Hacks . | . . . Repair Station Hacks . | . . . Recycling Unit Hacks . | . . . Scanalyzer . | . . . Garrison Access Hacks . | . . . Unauthorized Hacks 1 | . 1 . Terminals 1 | . 1 . Skim 1 | . 1 . Fabricators . | . . . Repair Stations . | . . . Recycling Units . | . . . Scanalyzers . | . . . Garrison Access . | . . . Data Cores Recovered . | . . . Used . | . . . Hacking Detections 2 | . 2 . Full Trace Events . | . . . Feedback Events . | . . . Feedback Blocked . | . . . Robot Schematics Acquired . | . . . Robots Built . | . . . Authchips . | . . . Time . | . . . Total Robot Build Rating . | . . . Part Schematics Acquired . | . . . Parts Built . | . . . Authchips . | . . . Time . | . . . Total Part Build Rating . | . . . Parts Repaired . | . . . Time . | . . . Parts Recycled . | . . . Recycled Matter . | . . . Retrieved Matter . | . . . Retrieved Components . | . . . Parts Scanalyzed . | . . . Part Schematics Acquired . | . . . Parts Damaged . | . . . Bothacking | -11 -10 -10 ------------ Run | Yrd Mat Sub Used RIF Installer . | . . . Robots Hacked . | . . . Non-combat . | . . . Combat . | . . . Robot Hacks Applied . | . . . Relay Couplers Released . | . . . Fabnet Peak Effective % . | . . . Robots Rewired . | . . . Allies Hacked . | . . . Hacks Repelled . | . . . Allies | -11 -10 -10 -------- Run | Yrd Mat Sub Total Allies . | . . . Largest Group . | . . . Highest-Rated Group . | . . . Highest-Rated Ally . | . . . Total Orders . | . . . Ally Attacks . | . . . Total Damage . | . . . Kills . | . . . Allies Corrupted . | . . . Allies Melted . | . . . Intel | -11 -10 -10 ------- Run | Yrd Mat Sub Active Infowar (turns) 2062 | 138 610 1314 Terrain 133 | 133 . . Seismic 1929 | 5 610 1314 Robot Analysis Total . | . . . Derelict Logs Recovered 2 | . . 2 Drone Launches . | . . . Drone Recoveries . | . . . Exploration | -11 -10 -10 ------------- Run | Yrd Mat Sub Turns Passed 3926 | 226 610 3090 Spaces Moved 1560 | 67 248 1245 Core . | . . . Treads 1 | . . 1 Legs 2 | 2 . . Wheels 1557 | 65 248 1244 Hover . | . . . Flight . | . . . Fastest Speed 95 | 95 95 215 Average Speed 217 | 95 186 230 Slowest Speed 480 | 120 215 480 Overloaded Moves . | . . . Propulsion Burnouts . | . . . Robots Hopped . | . . . Potential Cave-ins . | . . . Cave-ins Triggered . | . . . Exploration Rate (%) 36 | 3 39 66 Regions Visited 2 Branch Regions 1 Pre-discovered Areas 2 | . . 2 Known Exits Taken . | . . . Unknown Exits Taken 2 | 1 1 . Scrap Searched . | . . . Spaces Dug 41 | . . 41 Terrain Destroyed 84 | . . 84 Melee . | . . . Projectile . | . . . AOE 84 | . . 84 Terrain Rammed . | . . . Walls Destroyed . | . . . Machines Disabled . | . . . Actions | -11 -10 -10 --------- Run | Yrd Mat Sub Total 1943 | 195 384 1364 Wait 240 | 94 111 35 Move 1558 | 66 247 1245 Hop . | . . . Pick Up 17 | 6 8 3 Fast Attach 4 | 2 2 . Attach 8 | 2 . 6 Detach 4 | 2 2 . Swap 12 | . 3 9 Drop 10 | 5 4 1 Fire 90 | 18 7 65 Melee . | . . . Ram . | . . . Kick . | . . . Crush . | . . . Escape Stasis . | . . . Rewire . | . . . Trap . | . . . Miscellaneous . | . . . Route ------- -11/Scrapyard -10/Materials (discovered 2 exits: [*Mat] / [*Sub]) -10/Subcaves (discovered 2 exits: [*Mat] / [*Rec]) History --------- Turn | Location | Event 1 | -11/Scrapyard | Discovered new exit (range 1) 227 | -11/Scrapyard | Entered Materials 352 | -10/Materials | Build established: Mutant 586 | -10/Materials | Discovered new exit (range 15) 806 | -10/Materials | Discovered new exit (range 7) 837 | -10/Materials | Entered Subcaves 848 | -10/Subcaves | Learned Materials emergency access door positions 2129 | -10/Subcaves | Core integrity fell below 50% 2193 | -10/Subcaves | Lost 3 parts (1n1u1w) 2274 | -10/Subcaves | Discovered new exit (range 7) 2378 | -10/Subcaves | Learned location of Zion (-6) 2378 | -10/Subcaves | Met a Zionite searching for "candidates" 2823 | -10/Subcaves | A swath of the cavern ceiling suddenly collapsed 3654 | -10/Subcaves | Shifting Twisted Machinery released Shrapnel Trap 3827 | -10/Subcaves | Discovered new exit (range 15) 3918 | -10/Subcaves | Ambushed by Subdweller buried in earth 3918 | -10/Subcaves | Ambushed by Subdweller buried in earth 3922 | -10/Subcaves | Core integrity fell below 20% 3927 | -10/Subcaves | Destroyed by EM-TYD(R) with Subdweller Machine Gun Last Messages --------------- 03798_ S-10 Pest destroyed. 03809_ Subatomizers dissect the Flight Unit. 03811_ Flight Unit fries itself beyond repair. 03812_ S-10 Pest destroyed. 03815_ Lgt. Assault Rifle fries itself beyond repair. 03819_ Subatomizers dissect the Flight Unit. 03822_ Flight Unit fries itself beyond repair. 03822_ Lgt. Assault Rifle fries itself beyond repair. 03824_ Acquired 5 matter. 03824_ Acquired 4 matter. 03824_ Acquired 3 matter. 03824_ Acquired 5 matter. 03827_ EXIT=FOUND 03882_ System corrupted: Med. Laser fused. 03919_ EM-TYD(R): "ARGHSUB!" 03919_ 6K-QL3(R): "ARGHSUB!" 03921_ System corrupted: Energy discharge (-79). Map ----- +----------------------------------------------------+ | ????????????????????????####??????????????????## | | ?????????????????????????????????????????????## | | ?????????????????????????????????????????????# | | ?????????????????????????????????????????????# | | ???????????????????????????????????????????### | | ??????????????????????????????????????????## | | ?????????????????????????????????????????## | | ?????????????????????????????????????????# | | ????????????????????????????????????????## | | ????????????????????????????????????????# | | ??????????????????????????????????????### | | ??????????????????????????????????????# | | ??????????????????????????????????????# #### | | ????????????????????????????????????### ##??? | | ????????????????????????????????????# ## #???? | | ???????????????????????????????????## ### #???? | | ???????????????????????????????????# ## #???? | | ??????????????????????????????????## ### #??? | | ??????????????????????#####??????## #### #??? | | ?????????????????##?### # ####??## #####??? | | ?????????????????# # # # #### ##???? | | ?########?????##### ## #???? | | ## #?????# # R ##??? | | # ###???## # R & "# ##?? | | # #??## ## # & ### ### | | ##### ###### @ ## &### | | ## # # #???# ##### ##### | | # ## # ##??## ####???## ## ###???### | | # #" #### #???#??